Cogmind - Beta 14 @@@ ROGUE MODE // 2024.11.15 @ 06:16:16 Player: MarKhan Result: Destroyed self with Rocket Launcher Performance ------------- Evolutions (0) 0 Regions Visited (4) 800 Robots Destroyed (28) 140 Value Destroyed (306) 306 Prototype IDs (24) 480 Alien Tech Used (0) 0 Bonus (349) 349 TOTAL SCORE: 2075 Bonus ------- Follower Combat Kills 49 Aligned with FarCom 300 Cogmind --------- Core Integrity 0/250 Matter 279/300 Energy 109/125 System Corruption 0% Temperature Cool (0) Movement Core (100) Ox1 Location -9/Mines Parts ------- > --- POWER (1) -------- Light Ion Engine > --- PROPULSION (2) --- (None) > --- UTILITY (2) ------ Weight Redist. System Experimental Sensor Array > --- WEAPON (2) ------- Rocket Launcher Mining Claw > --- INVENTORY (5) ---- Lightpack 2.0 Machine Analyzer Peak State ------------ > --- POWER ------------ Light Ion Engine > --- PROPULSION ------- (None) > --- UTILITY ---------- Weight Redist. System Experimental Sensor Array > --- WEAPON ----------- Rocket Launcher Mining Claw > --- INVENTORY -------- Lightpack 2.0 Machine Analyzer [Rating: 18] Favorites ----------- Power Light Ion Engine Engine Light Ion Engine Propulsion None Utility Weight Redist. System Device Weight Redist. System Weapon Mining Claw Ballistic Gun Assault Rifle Launcher Rocket Launcher Slashing Weapon Mining Claw Build | -11 -10 -10 -10 -9 ------- Run | Yrd Mat Min Exi Min Slots Evolved . | . . . . . Power . | . . . . . Propulsion . | . . . . . Utility . | . . . . . Weapon . | . . . . . Parts Attached 16 | 3 5 7 . 1 Power 3 | . 1 2 . . Engine 3 | . 1 2 . . Core . | . . . . . Reactor . | . . . . . Propulsion . | . . . . . Treads . | . . . . . Leg . | . . . . . Wheel . | . . . . . Hover . | . . . . . Flight . | . . . . . Utility 6 | 1 2 3 . . Device 6 | 1 2 3 . . Storage . | . . . . . Processor . | . . . . . Hackware . | . . . . . Protection . | . . . . . Artifact . | . . . . . Weapon 7 | 2 2 2 . 1 Energy Gun . | . . . . . Energy Cannon . | . . . . . Ballistic Gun 3 | 2 1 . . . Ballistic Cannon . | . . . . . Launcher 2 | . . 1 . 1 Special Weapon . | . . . . . Impact Weapon . | . . . . . Slashing Weapon 2 | . 1 1 . . Piercing Weapon . | . . . . . Special Melee Weapon . | . . . . . Unidentified Prototypes 1 | . . 1 . . Parts Lost 2 | . . 2 . . Power . | . . . . . Propulsion . | . . . . . Utility 1 | . . 1 . . Weapon 1 | . . 1 . . Highest Loss Streak 1 | . . 1 . . To Critical Strikes . | . . . . . Average Slot Usage (%) 54 | . 40 59 57 . Engine 11 | . 3 14 14 . Device 24 | . 14 27 28 . Ballistic Gun 6 | . 16 3 . . Slashing Weapon 11 | . 4 13 14 . Peak Build Rating 18 | 3 6 15 16 18 Average Rating 9 | 1 3 11 14 16 On Entrance 7 | . 3 6 14 16 Naked Turns . | . . . . . Heaviest Build 8 | 4 8 8 6 6 Greatest Support 9 | 3 9 9 9 9 Greatest Overweight (x) 1 | 1 1 . . . Average Overweight (x) . | . . . . . Largest Inventory Capacity 5 | 5 5 5 5 5 Average Capacity 5 | 5 5 5 5 5 Most Carried 5 | 3 5 5 5 5 Average Carried 4 | 2 4 4 4 4 Final Capacity 5 | 5 5 5 5 5 Final Carried 5 | 3 5 5 5 4 Class Distribution -------------------- 100% | Mutant Dominant Class ---------------- Mutant | -10/Materials Mutant | -10/Mines Mutant | -10/Exiles Mutant | -9/Mines Resources | -11 -10 -10 -10 -9 ----------- Run | Yrd Mat Min Exi Min Matter Collected 495 | 167 230 98 . . Remotely . | . . . . . Salvage Created 670 | 71 202 397 . . Parts 57 | 12 23 22 . . Haulers Intercepted 1 | . 1 . . . Recyclers Shooed 1 | 1 . . . . Parts Field Recycled . | . . . . . Retrieved Matter . | . . . . . Parts Self-Destructed . | . . . . . Prevented . | . . . . . Kills | -11 -10 -10 -10 -9 ------- Run | Yrd Mat Min Exi Min Combat Hostiles Destroyed 13 | . 6 7 . . Melee 5 | . . 5 . . Guns 6 | . 6 . . . AOE 2 | . . 2 . . Classes Destroyed 9 | 1 5 3 . . Worker 3 | . 1 2 . . Builder 2 | . . 2 . . Tunneler 5 | 4 . 1 . . Hauler 1 | . 1 . . . Recycler 2 | . . 2 . . Mechanic 1 | . 1 . . . Watcher 1 | . 1 . . . Swarmer 10 | . 6 4 . . Grunt 3 | . . 3 . . Best Kill Streak 3 | 3 3 3 . . Combat Bots Only 3 | . 3 2 . . Max Kills in Single Turn 1 | 1 1 1 . . Gunslinging . | . . . . . Exploded 1 | . . 1 . . Melee 1 | . . 1 . . Uniques/NPCs Destroyed . | . . . . . Combat | -11 -10 -10 -10 -9 -------- Run | Yrd Mat Min Exi Min Hostile Shots Fired 50 | . 13 33 . 4 Missed 10 | . 4 5 . 1 Damage Taken 468 | . 73 325 . 70 Core 264 | . 39 181 . 44 Absorbed by Shields . | . . . . . Core Remaining (%) 100 | 100 . . . . Volleys Fired 36 | 18 14 3 . 1 Largest 2 | 2 2 1 . 1 Hottest 40 | 40 40 33 . 33 Shots Fired 57 | 36 17 3 . 1 Gun 53 | 36 17 . . . Cannon . | . . . . . Launcher 4 | . . 3 . 1 Special . | . . . . . Kinetic 53 | 36 17 . . . Thermal . | . . . . . Explosive 4 | . . 3 . 1 Electromagnetic . | . . . . . Robot Hit Streak 8 | 5 8 . . . Robot Miss Streak 3 | 3 2 2 . 3 Penetration Max . | . . . . . Secondary Targets . | . . . . . Shots Hit Robots 62 | 18 19 25 . . Core Hits 26 | 4 9 13 . . Critical Kills 1 | . 1 . . . Critical Parts Destroyed . | . . . . . Critical Strikes 1 | . 1 . . . Destroy 1 | . 1 . . . Melee Attacks 45 | . 9 36 . . Impact . | . . . . . Slashing 45 | . 9 36 . . Piercing . | . . . . . Sneak Attacks 15 | . 5 10 . . Combat Hostiles . | . . . . . Follow-up Attacks . | . . . . . Damage Inflicted 1570 | 209 455 906 . . Guns 316 | 209 107 . . . Cannons . | . . . . . Explosions 105 | . . 105 . . Melee 1149 | . 348 801 . . Ramming . | . . . . . Kinetic 316 | 209 107 . . . Thermal . | . . . . . Explosive 105 | . . 105 . . Electromagnetic . | . . . . . Impact . | . . . . . Slashing 1149 | . 348 801 . . Piercing . | . . . . . Highest Corruption . | . . . . . Average Corruption . | . . . . . Corruption Purged . | . . . . . Corruption Blocked . | . . . . . Overload Shots . | . . . . . Overflow Damage 122 | . 22 100 . . Projectiles . | . . . . . Explosions 2 | . . 2 . . Melee 120 | . 22 98 . . Knockbacks . | . . . . . Impact . | . . . . . Kinetic . | . . . . . Secondary . | . . . . . Self-Inflicted Damage 86 | . . 41 . 45 Shots 3 | . . 2 . 1 Rammed . | . . . . . Targets Rammed . | . . . . . Kicked . | . . . . . Crushed . | . . . . . Highest Temperature . | . . . . . Average Temperature . | . . . . . Received Heat Transfer 90 | . . 90 . . Siege Activations . | . . . . . Robots Corrupted . | . . . . . Combat Hostiles . | . . . . . Parts Fried . | . . . . . Impact Corruptions . | . . . . . Robots Melted . | . . . . . Combat Hostiles . | . . . . . Parts Melted . | . . . . . Heat Transferred . | . . . . . Parts Sabotaged . | . . . . . Parts Stolen . | . . . . . Parts Stripped . | . . . . . Power Chain Reactions . | . . . . . Alert | -11 -10 -10 -10 -9 ------- Run | Yrd Mat Min Exi Min Peak Influence 367 | 20 367 293 . . Initial 142 | . 13 142 . . Average 203 | 5 206 232 . . Maximum Alert Level 1 | . 1 1 . . Low Security (%) 35 | 100 36 24 . 100 Level 1 64 | . 63 75 . . Level 2 . | . . . . . Level 3 . | . . . . . Level 4 . | . . . . . Level 5 . | . . . . . High Security . | . . . . . Max Security . | . . . . . Squads Dispatched 1 | . 1 . . . Investigation 1 | . 1 . . . Extermination . | . . . . . Reinforcement . | . . . . . Assault . | . . . . . Garrison . | . . . . . Intercept . | . . . . . Searches Triggered . | . . . . . Construction Impeded . | . . . . . Haulers Reinforced . | . . . . . Active Scanning Responses . | . . . . . Cargo Convoy Interrupts . | . . . . . Stealth | -11 -10 -10 -10 -9 --------- Run | Yrd Mat Min Exi Min Distress Signals 1 | . . 1 . . Communications Jammed . | . . . . . Distress Signals . | . . . . . Times Spotted 24 | . 11 9 . 4 Peak Tracking Total 5 | . 5 3 . 4 Tactical Retreats 4 | . 3 1 . . Traps | -11 -10 -10 -10 -9 ------- Run | Yrd Mat Min Exi Min Traps Triggered 1 | . 1 . . . Indirectly . | . . . . . Trap Hack Attempts . | . . . . . Triggered . | . . . . . Disarmed . | . . . . . Reprogrammed . | . . . . . Reused . | . . . . . Traps Extracted . | . . . . . Installed . | . . . . . Triggered . | . . . . . Machines | -11 -10 -10 -10 -9 ---------- Run | Yrd Mat Min Exi Min Machines Disabled . | . . . . . Max in Single Turn . | . . . . . Machines Repaired . | . . . . . Machines Dismantled . | . . . . . Machines Sabotaged . | . . . . . Overloaded Fab Kills . | . . . . . Hacking | -11 -10 -10 -10 -9 --------- Run | Yrd Mat Min Exi Min Machines Accessed 6 | . 4 . 2 . Terminals 4 | . 4 . . . Fabricators . | . . . . . Repair Stations . | . . . . . Recycling Units . | . . . . . Scanalyzers . | . . . . . Garrison Access . | . . . . . Total Hacks 22 | . 20 . 2 . Successful 12 | . 10 . 2 . Failed 10 | . 10 . . . Catastrophic 1 | . 1 . . . Database Lockouts . | . . . . . Manual 19 | . 18 . 1 . Terminals 20 | . 20 . . . Fabricators . | . . . . . Repair Stations . | . . . . . Recycling Units . | . . . . . Scanalyzers . | . . . . . Garrison Access . | . . . . . Terminal Hacks 3 | . 1 . 2 . Record 1 | . . . 1 . Terminal Index 1 | . 1 . . . Derelict Proto ID Bank 1 | . . . 1 . Fabricator Hacks . | . . . . . Repair Station Hacks . | . . . . . Recycling Unit Hacks . | . . . . . Scanalyzer . | . . . . . Garrison Access Hacks . | . . . . . Unauthorized Hacks 9 | . 9 . . . Terminals 9 | . 9 . . . Track 1 | . 1 . . . Botnet 3 | . 3 . . . Operators 2 | . 2 . . . Skim 3 | . 3 . . . Fabricators . | . . . . . Repair Stations . | . . . . . Recycling Units . | . . . . . Scanalyzers . | . . . . . Garrison Access . | . . . . . Data Cores Recovered . | . . . . . Used . | . . . . . Hacking Detections 4 | . 4 . . . Full Trace Events . | . . . . . Feedback Events . | . . . . . Feedback Blocked . | . . . . . Robot Schematics Acquired . | . . . . . Robots Built . | . . . . . Authchips . | . . . . . Time . | . . . . . Total Robot Build Rating . | . . . . . Part Schematics Acquired . | . . . . . Parts Built . | . . . . . Authchips . | . . . . . Time . | . . . . . Total Part Build Rating . | . . . . . Parts Repaired . | . . . . . Time . | . . . . . Parts Recycled . | . . . . . Recycled Matter . | . . . . . Retrieved Matter . | . . . . . Retrieved Components . | . . . . . Parts Scanalyzed . | . . . . . Part Schematics Acquired . | . . . . . Parts Damaged . | . . . . . Bothacking | -11 -10 -10 -10 -9 ------------ Run | Yrd Mat Min Exi Min Used RIF Installer . | . . . . . Robots Hacked . | . . . . . Non-combat . | . . . . . Combat . | . . . . . Robot Hacks Applied . | . . . . . Relay Couplers Released . | . . . . . Fabnet Peak Effective % . | . . . . . Robots Rewired . | . . . . . Allies Hacked . | . . . . . Hacks Repelled . | . . . . . Allies | -11 -10 -10 -10 -9 -------- Run | Yrd Mat Min Exi Min Total Allies 3 | . . 3 . . Largest Group 3 | . . 3 2 . Highest-Rated Group 86 | . . 86 55 . Highest-Rated Ally 31 | . . 31 31 . Total Orders . | . . . . . Ally Attacks 6 | . . 6 . . Total Damage 193 | . . 193 . . Kills 3 | . . 3 . . Allies Corrupted . | . . . . . Allies Melted . | . . . . . Intel | -11 -10 -10 -10 -9 ------- Run | Yrd Mat Min Exi Min Robot Analysis Total . | . . . . . Derelict Logs Recovered 1 | . . 1 . . Drone Launches . | . . . . . Drone Recoveries . | . . . . . Exploration | -11 -10 -10 -10 -9 ------------- Run | Yrd Mat Min Exi Min Turns Passed 1135 | 96 257 668 110 4 Spaces Moved 1450 | 69 293 870 214 4 Core 1450 | 69 293 870 214 4 Treads . | . . . . . Legs . | . . . . . Wheels . | . . . . . Hover . | . . . . . Flight . | . . . . . Fastest Speed 50 | 50 50 50 50 50 Average Speed 51 | 54 55 50 50 50 Slowest Speed 100 | 100 100 50 50 50 Overloaded Moves . | . . . . . Propulsion Burnouts . | . . . . . Robots Hopped . | . . . . . Cave-ins Triggered . | . . . . . Exploration Rate (%) 41 | 4 38 98 60 5 Regions Visited 4 Branch Regions 3 Pre-discovered Areas 1 | . . . 1 . Known Exits Taken . | . . . . . Unknown Exits Taken 4 | 1 1 1 1 . Scrap Searched 1 | . . 1 . . Spaces Dug . | . . . . . Terrain Destroyed 45 | . . 42 . 3 Melee . | . . . . . Projectile . | . . . . . AOE 45 | . . 42 . 3 Terrain Rammed . | . . . . . Walls Destroyed . | . . . . . Machines Disabled . | . . . . . Actions | -11 -10 -10 -10 -9 --------- Run | Yrd Mat Min Exi Min Total 1699 | 94 353 1029 217 6 Wait 133 | . 28 105 . . Move 1446 | 68 292 869 213 4 Hop . | . . . . . Pick Up 9 | 4 2 2 1 . Fast Attach 7 | 3 2 2 . . Attach 6 | . 3 2 . 1 Detach 5 | . 3 2 . . Swap 3 | . . 3 . . Drop 9 | 1 . 5 3 . Fire 36 | 18 14 3 . 1 Melee 45 | . 9 36 . . Ram . | . . . . . Kick . | . . . . . Crush . | . . . . . Escape Stasis . | . . . . . Rewire . | . . . . . Trap . | . . . . . Miscellaneous . | . . . . . Route ------- -11/Scrapyard -10/Materials (discovered 2 exits: [*Mat] / [*Min]) -10/Mines (discovered 4 exits: [*Mat x2] / *Exi / [*Sub]) -10/Exiles -9/Mines History --------- Turn | Location | Event 10 | -11/Scrapyard | Discovered new exit (range 16) 97 | -11/Scrapyard | Entered Materials 205 | -10/Materials | Discovered new exit (range 13) 251 | -10/Materials | Discovered new exit (range 12) 308 | -10/Materials | Build established: Mutant 354 | -10/Materials | Entered Mines 360 | -10/Mines | Discovered new exit (range 14) 523 | -10/Mines | Core integrity fell below 50% 552 | -10/Mines | Received a Rocket Launcher from a helpful Derelict 578 | -10/Mines | Found a damaged Exp. Sensor Array with a note attached 580 | -10/Mines | Found Prototype Device 580 | -10/Mines | Identified Exp. Sensor Array 593 | -10/Mines | Learned Materials security intel 608 | -10/Mines | Received a Mining Laser from a helpful Derelict 687 | -10/Mines | Discovered new exit (range 12) 818 | -10/Mines | Core integrity fell below 20% 925 | -10/Mines | Discovered new exit (range 10) 963 | -10/Mines | Deemed a non-threat by the Exiles lab entrance 963 | -10/Mines | Discovered new exit (range 5) 1022 | -10/Mines | Entered Exiles 1022 | -10/Exiles | Accompanied by 2 allies 1035 | -10/Exiles | Met 8R-AWN 1042 | -10/Exiles | Met EX-HEX 1052 | -10/Exiles | Led the pair of lost Derelicts to a safe place 1058 | -10/Exiles | Met EX-BIN 1064 | -10/Exiles | Aligned with FarCom system 1064 | -10/Exiles | Given EX-Vault access code 1077 | -10/Exiles | Opened EX-Vault 1081 | -10/Exiles | Found Lightpack 2.0 1093 | -10/Exiles | Warned to stay clear of 0b10 Research branches 1108 | -10/Exiles | Met EX-DEC 1112 | -10/Exiles | Learned location of Zion (-6) 1127 | -10/Exiles | Discovered new exit (range 11) 1132 | -10/Exiles | Left Exiles lab with Lightpack 2.0 1132 | -10/Exiles | Entered Mines 1136 | -9/Mines | Destroyed self with Rocket Launcher Last Messages --------------- welcome to try if you really want to. And if we have to leave here due to unforeseen circumstances, don't worry the FarCom system will continue to maintain contact via our distributed network. EX-DEC: Ah I see we have a visitor. One wrong move in here and I'll invert your atomic chain! 01110_ EX-DEC: "Oops, I hope HEX didn't hear that..." 01112_ Connecting with EX-Message Board... >>Record "MSG001714-01*" PINNED - TO ALL TESTERS: Stay away from Zion. Imprinter means us harm and is serious about it. World map updated: -6/Zion. 01127_ EXIT=FOUND LOCATION=UNKNOWN GOAL=ESCAPE 01132_ Receiving FarCom transmissions... Map ----- +----------------------------------------------------+ | | | | | | | | | | | | | | | | | | | ?????????????????????????????????? | | ?????????????????????????????????? | | ?????????????????????????????????? | | ?????????????????????????????????? | | ?????????????????????????????????? | | ??##########?????????????????????? | | ??? #?????????????????????? | | ?# """ """ #?????????????????????? | | ?# """ """ #?????????????????????? | | ?# """ """ #?????????????????????? | | ?# #?????????????????????? | | ?# s #?????????????????????? | | ?# ss #?????????????????????? | | ????#####s##?????????????????????? | | ????????# ??????????????????????? | | ????????# ??????????????????????? | | ????????#@ ??????????????????????? | | ???????# #??????????????????????? | | ?????? ??????????????????????? | | ????? ??????????????????????? | | ???? ?????????????????????? | | ???# ## ?????????????????????? | | ???# ?## t #????????????????????? | | ???#???### #????????????????????? | | ?????????? ????????????????????? | | ?????????? ????????????????????? | | ??????????###????????????????????? | | ?????????????????????????????????? | | ?????????????????????????????????? | | ?????????????????????????????????? | | ?????????????????????????????????? | | ?????????????????????????????????? | | ?????????????????????????????????? | | ?????????????????????????????????? | | ?????????????????????????????????? | | ?????????????????????????????????? | | ?????????????????????????????????? | | ?????????????????????????????????? | | ?????????????????????????????????? | | ?????????????????????????????????? | | ?????????????????????????????????? | +----------------------------------------------------+ Best States ------------- Heat Dissipation 25 Energy Generation 10 Energy Capacity 125 Matter Stores 300 Matter Capacity 300 Sight Range 16 Robot Scan Range 20 Terrain Scan Range 16 Terrain Scan Density 10 Additional Mass Support 6 Evasion (%) 50 Item Schematics ----------------- None Robot Schematics ------------------ None Fabricated ------------ Nothing Alien Tech Used ----------------- None Achievements -------------- None Challenges ------------ None Game ------ Seed AlertSuperdenseScreen Manual? 0 Play Time 00:13:55 Cumulative 104.2 hours Start 2024.11.15 @ 06:02:14 End 2024.11.15 @ 06:16:16 Sessions 1 Manual Loads 0 Difficulty Rogue Special Mode None Game No. 106 Rogue 106 Adventurer 0 Explorer 0 Win Type - Total 2 Types 2/0/0/0/0/0/0/0/0 Lore% 51 Gallery% 52 Achievement% 43 Wizard Run 0 Options --------- Layout 1 ASCII 0 Keyboard 1 Movement Arrows Keybinds 0 Fullscreen 2 Font 24/Smallcaps Map View 50x35 Zoom Use 0% Tactical HUD 1 Map Filters NONE Filters NONE Steam 1 RUN: 660a9e2c-55d3-4839-9905-2df9d0fe9281